[Event "Early-Titled-Tuesday-Blitz-February-13-2024"]
[Site "Chess.com"]
[Date "2024.02.13"]
[Round "4"]
[White "HATilay"]
[Black "CarlosjPineror"]
[Result "1-0"]
[WhiteElo "2517"]
[BlackElo "2691"]
[TimeControl "180+1"]
[EndTime "8:43:31 PST"]
[Termination "HATilay won on time"]

1. e4 {[%clk 0:02:55.6]} 1... c5 {[%clk 0:03:00]} 2. Nf3 {[%clk 0:02:53.5]} 2...
e6 {[%clk 0:03:00.2]} 3. d4 {[%clk 0:02:52.6]} 3... cxd4 {[%clk 0:03:01.1]} 4.
Nxd4 {[%clk 0:02:52.9]} 4... a6 {[%clk 0:03:01.1]} 5. Bd3 {[%clk 0:02:52.6]}
5... Qc7 {[%clk 0:03:01.3]} 6. O-O {[%clk 0:02:50.2]} 6... Nf6 {[%clk 0:03:02]}
7. Re1 {[%clk 0:02:49.9]} 7... d6 {[%clk 0:03:01]} 8. Nc3 {[%clk 0:02:47.8]}
8... Be7 {[%clk 0:03:01.2]} 9. a4 {[%clk 0:02:42.4]} 9... b6 {[%clk 0:02:58.9]}
10. Kh1 {[%clk 0:02:31.4]} 10... O-O {[%clk 0:02:58.5]} 11. f4 {[%clk
0:02:30.9]} 11... Bb7 {[%clk 0:02:57]} 12. Qf3 {[%clk 0:02:25.9]} 12... Nc6
{[%clk 0:02:56.3]} 13. Nb3 {[%clk 0:02:17.9]} 13... Nb4 {[%clk 0:02:51]} 14. Bd2
{[%clk 0:02:12.6]} 14... Rac8 {[%clk 0:02:35.4]} 15. Nb5 {[%clk 0:01:41.9]}
15... axb5 {[%clk 0:02:24.8]} 16. Bxb4 {[%clk 0:01:42.1]} 16... bxa4 {[%clk
0:02:13.7]} 17. Rxa4 {[%clk 0:01:43]} 17... d5 {[%clk 0:02:14]} 18. e5 {[%clk
0:01:40]} 18... Ne4 {[%clk 0:02:13]} 19. c3 {[%clk 0:01:17.1]} 19... Ra8 {[%clk
0:02:02.5]} 20. Bxe7 {[%clk 0:01:13.3]} 20... Qxe7 {[%clk 0:02:01.1]} 21. Rb4
{[%clk 0:01:13.1]} 21... Qc7 {[%clk 0:01:59.6]} 22. Qe3 {[%clk 0:00:58.3]} 22...
Nc5 {[%clk 0:01:58.1]} 23. Nd4 {[%clk 0:00:52.3]} 23... g6 {[%clk 0:01:45.1]}
24. g4 {[%clk 0:00:31.9]} 24... f6 {[%clk 0:01:07.3]} 25. Bf1 {[%clk 0:00:18.8]}
25... fxe5 {[%clk 0:01:06.3]} 26. Qxe5 {[%clk 0:00:18.9]} 26... Qxe5 {[%clk
0:01:05.7]} 27. fxe5 {[%clk 0:00:19.3]} 27... Ba6 {[%clk 0:01:02.3]} 28. Bxa6
{[%clk 0:00:11.1]} 28... Rxa6 {[%clk 0:01:03.2]} 29. Rb5 {[%clk 0:00:05.7]}
29... Nd3 {[%clk 0:00:59.9]} 30. Re3 {[%clk 0:00:05.5]} 30... Ra1+ {[%clk
0:00:44.1]} 31. Kg2 {[%clk 0:00:05.7]} 31... Rf2+ {[%clk 0:00:43.3]} 32. Kh3
{[%clk 0:00:06.1]} 32... Nf4+ {[%clk 0:00:25.3]} 33. Kg3 {[%clk 0:00:06.4]}
33... Raf1 {[%clk 0:00:25.3]} 34. Rf3 {[%clk 0:00:03.7]} 34... Ne2+ {[%clk
0:00:17.6]} 35. Nxe2 {[%clk 0:00:01.3]} 35... Rxf3+ {[%clk 0:00:17.5]} 36. Kh4
{[%clk 0:00:01.9]} 36... R1f2 {[%clk 0:00:14]} 37. Nd4 {[%clk 0:00:01.5]} 37...
Rxh2+ {[%clk 0:00:08.6]} 38. Kg5 {[%clk 0:00:01.3]} 38... Rf7 {[%clk 0:00:05.2]}
39. Rxb6 {[%clk 0:00:01.5]} 39... h6+ {[%clk 0:00:03.8]} 40. Kxg6 {[%clk
0:00:01.7]} 40... Rg7+ {[%clk 0:00:04.4]} 41. Kf6 {[%clk 0:00:02.3]} 41... Rxg4
{[%clk 0:00:04.5]} 42. Kxe6 {[%clk 0:00:03]} 42... Rg5 {[%clk 0:00:04.2]} 43.
Kxd5 {[%clk 0:00:03.5]} 43... Rg7 {[%clk 0:00:04.4]} 44. e6 {[%clk 0:00:03.5]}
44... Rh5+ {[%clk 0:00:03.5]} 45. Kd6 {[%clk 0:00:03.6]} 45... Kh7 {[%clk
0:00:01.9]} 46. Rb8 {[%clk 0:00:04.1]} 46... Rhg5 {[%clk 0:00:01.3]} 47. Rf8
{[%clk 0:00:04.5]} 47... h5 {[%clk 0:00:01.5]} 48. e7 {[%clk 0:00:04.3]} 48...
R5g6+ {[%clk 0:00:01.3]} 49. Ne6 {[%clk 0:00:05]} 1-0

[Event "Early-Titled-Tuesday-Blitz-February-13-2024"]
[Site "Chess.com"]
[Date "2024.02.13"]
[Round "4"]
[White "Msb2"]
[Black "Evgeny81"]
[Result "0-1"]
[WhiteElo "2985"]
[BlackElo "2722"]
[TimeControl "180+1"]
[EndTime "8:43:33 PST"]
[Termination "Evgeny81 won by checkmate"]

1. d4 {[%clk 0:03:00.9]} 1... Nf6 {[%clk 0:02:59.5]} 2. c4 {[%clk 0:03:00.5]}
2... c5 {[%clk 0:02:59.7]} 3. d5 {[%clk 0:03:00.6]} 3... g6 {[%clk 0:03:00.1]}
4. Nc3 {[%clk 0:03:00.9]} 4... Bg7 {[%clk 0:03:00.4]} 5. e4 {[%clk 0:03:01.6]}
5... d6 {[%clk 0:03:00.9]} 6. h3 {[%clk 0:03:02.4]} 6... O-O {[%clk 0:03:00.6]}
7. Nf3 {[%clk 0:03:03.1]} 7... Na6 {[%clk 0:02:59.6]} 8. Bd3 {[%clk 0:03:03.4]}
8... Nc7 {[%clk 0:02:59.7]} 9. O-O {[%clk 0:03:00.1]} 9... e5 {[%clk 0:02:57.6]}
10. dxe6 {[%clk 0:02:59.2]} 10... Nxe6 {[%clk 0:02:55.2]} 11. Be3 {[%clk
0:02:56.1]} 11... Bd7 {[%clk 0:02:54.4]} 12. Qd2 {[%clk 0:02:53.8]} 12... Bc6
{[%clk 0:02:52.2]} 13. Rad1 {[%clk 0:02:54.5]} 13... Qa5 {[%clk 0:02:49.1]} 14.
Nd5 {[%clk 0:02:41.3]} 14... Qxd2 {[%clk 0:02:47.6]} 15. Rxd2 {[%clk 0:02:42.2]}
15... Rfe8 {[%clk 0:02:42.5]} 16. Bc2 {[%clk 0:02:34.3]} 16... Nd7 {[%clk
0:02:39.2]} 17. b3 {[%clk 0:02:28.2]} 17... b5 {[%clk 0:02:34.9]} 18. cxb5
{[%clk 0:02:25.9]} 18... Bxb5 {[%clk 0:02:35.1]} 19. Rfd1 {[%clk 0:02:26.6]}
19... Ne5 {[%clk 0:02:18.3]} 20. Nxe5 {[%clk 0:02:02.2]} 20... Bxe5 {[%clk
0:02:19.2]} 21. Bd3 {[%clk 0:02:02.8]} 21... Bc6 {[%clk 0:02:00.7]} 22. Bc4
{[%clk 0:02:01.6]} 22... Rab8 {[%clk 0:01:56]} 23. f3 {[%clk 0:01:54.3]} 23...
g5 {[%clk 0:01:44]} 24. Bf2 {[%clk 0:01:49.8]} 24... Kg7 {[%clk 0:01:40.4]} 25.
Ne3 {[%clk 0:01:49.8]} 25... Nd4 {[%clk 0:01:37.8]} 26. Rxd4 {[%clk 0:01:46.8]}
26... cxd4 {[%clk 0:01:35.5]} 27. Nf5+ {[%clk 0:01:47.7]} 27... Kg6 {[%clk
0:01:23.6]} 28. Bxd4 {[%clk 0:01:44]} 28... f6 {[%clk 0:01:16.5]} 29. Bxa7
{[%clk 0:01:08.6]} 29... Ra8 {[%clk 0:01:16.6]} 30. Bd4 {[%clk 0:01:09.2]} 30...
d5 {[%clk 0:01:05.8]} 31. exd5 {[%clk 0:01:01.2]} 31... Bd7 {[%clk 0:01:05.9]}
32. Bxe5 {[%clk 0:01:01.7]} 32... Rxe5 {[%clk 0:01:05.5]} 33. Ng3 {[%clk
0:00:48.6]} 33... Rxa2 {[%clk 0:01:03.7]} 34. d6 {[%clk 0:00:49]} 34... f5
{[%clk 0:00:59.3]} 35. Kf1 {[%clk 0:00:44.8]} 35... h5 {[%clk 0:00:55.1]} 36.
Ne2 {[%clk 0:00:45]} 36... Rb2 {[%clk 0:00:52.3]} 37. f4 {[%clk 0:00:43.8]}
37... Re4 {[%clk 0:00:44]} 38. fxg5 {[%clk 0:00:44]} 38... Kxg5 {[%clk
0:00:44.7]} 39. Nd4 {[%clk 0:00:37]} 39... Kf4 {[%clk 0:00:39.4]} 40. Ne2+
{[%clk 0:00:23.6]} 40... Ke5 {[%clk 0:00:39.4]} 41. Rd5+ {[%clk 0:00:21.4]}
41... Kf6 {[%clk 0:00:39.8]} 42. Rd3 {[%clk 0:00:17.6]} 42... Rexe2 {[%clk
0:00:37.5]} 43. Rg3 {[%clk 0:00:06.5]} 43... Red2 {[%clk 0:00:35.2]} 44. Kg1
{[%clk 0:00:06.6]} 44... Rxd6 {[%clk 0:00:33.5]} 45. Kh2 {[%clk 0:00:07.1]}
45... h4 {[%clk 0:00:33.3]} 46. Rg8 {[%clk 0:00:07.5]} 46... Rdd2 {[%clk
0:00:33.3]} 47. Bf1 {[%clk 0:00:05.6]} 47... Rf2 {[%clk 0:00:32.6]} 48. Kg1
{[%clk 0:00:05.6]} 48... Rfc2 {[%clk 0:00:32.3]} 49. Rh8 {[%clk 0:00:06]} 49...
Rc1 {[%clk 0:00:32]} 50. Rxh4 {[%clk 0:00:06.1]} 50... Rbb1 {[%clk 0:00:32.3]}
51. Kh2 {[%clk 0:00:06.5]} 51... Rxf1 {[%clk 0:00:31.3]} 52. Rd4 {[%clk
0:00:07.2]} 52... Rfd1 {[%clk 0:00:30.5]} 53. Rb4 {[%clk 0:00:06.7]} 53... Be6
{[%clk 0:00:29.9]} 54. h4 {[%clk 0:00:05.1]} 54... Rh1+ {[%clk 0:00:28.8]} 55.
Kg3 {[%clk 0:00:05.2]} 55... Rxb3+ {[%clk 0:00:29.5]} 56. Rxb3 {[%clk
0:00:05.2]} 56... Bxb3 {[%clk 0:00:30.4]} 57. Kf3 {[%clk 0:00:04.4]} 57... Rxh4
{[%clk 0:00:29.8]} 58. g3 {[%clk 0:00:05.3]} 58... Rg4 {[%clk 0:00:30.2]} 59.
Ke3 {[%clk 0:00:06.2]} 59... Bd5 {[%clk 0:00:30.4]} 60. Kf2 {[%clk 0:00:07.1]}
60... Ke5 {[%clk 0:00:30.2]} 61. Ke1 {[%clk 0:00:08]} 61... Rxg3 {[%clk
0:00:30.4]} 62. Kd2 {[%clk 0:00:08.9]} 62... Kd4 {[%clk 0:00:30.2]} 63. Kc1
{[%clk 0:00:09.8]} 63... Rg2 {[%clk 0:00:30.7]} 64. Kb1 {[%clk 0:00:10.2]} 64...
Kc3 {[%clk 0:00:31.4]} 65. Kc1 {[%clk 0:00:11.1]} 65... f4 {[%clk 0:00:32]} 66.
Kd1 {[%clk 0:00:11.4]} 66... Bc4 {[%clk 0:00:32.9]} 67. Ke1 {[%clk 0:00:12.3]}
67... f3 {[%clk 0:00:32.6]} 68. Kd1 {[%clk 0:00:12.8]} 68... Rg1# {[%clk
0:00:33.1]} 0-1

[Event "Early-Titled-Tuesday-Blitz-February-13-2024"]
[Site "Chess.com"]
[Date "2024.02.13"]
[Round "4"]
[White "ExtremeLearner"]
[Black "OPQRC"]
[Result "1-0"]
[WhiteElo "2368"]
[BlackElo "2524"]
[TimeControl "180+1"]
[EndTime "8:43:33 PST"]
[Termination "ExtremeLearner won on time"]

1. d4 {[%clk 0:02:53.6]} 1... g6 {[%clk 0:02:58.7]} 2. c4 {[%clk 0:02:52.4]}
2... Bg7 {[%clk 0:02:59.1]} 3. Nf3 {[%clk 0:02:48.1]} 3... Nf6 {[%clk
0:02:59.1]} 4. g3 {[%clk 0:02:48.4]} 4... d5 {[%clk 0:02:56.2]} 5. Bg2 {[%clk
0:02:48.3]} 5... O-O {[%clk 0:02:54.4]} 6. O-O {[%clk 0:02:46.5]} 6... c6 {[%clk
0:02:54]} 7. a4 {[%clk 0:02:43.5]} 7... Bf5 {[%clk 0:02:53.5]} 8. a5 {[%clk
0:02:41.2]} 8... Ne4 {[%clk 0:02:50]} 9. Nc3 {[%clk 0:02:30.5]} 9... Nxc3 {[%clk
0:02:49.8]} 10. bxc3 {[%clk 0:02:31.4]} 10... Be4 {[%clk 0:02:50.5]} 11. c5
{[%clk 0:02:04.4]} 11... Nd7 {[%clk 0:02:47.3]} 12. e3 {[%clk 0:02:02.3]} 12...
b6 {[%clk 0:02:45.1]} 13. Bh3 {[%clk 0:01:44.7]} 13... bxc5 {[%clk 0:02:41.6]}
14. Ng5 {[%clk 0:01:44.4]} 14... cxd4 {[%clk 0:02:30.7]} 15. Nxe4 {[%clk
0:01:40.3]} 15... dxe4 {[%clk 0:02:31.6]} 16. cxd4 {[%clk 0:01:34.1]} 16... c5
{[%clk 0:02:31.2]} 17. Bb2 {[%clk 0:01:08.4]} 17... cxd4 {[%clk 0:02:31.3]} 18.
Ra4 {[%clk 0:00:49.8]} 18... Nc5 {[%clk 0:02:25.8]} 19. Rc4 {[%clk 0:00:48.2]}
19... Nd3 {[%clk 0:02:20.9]} 20. Bxd4 {[%clk 0:00:47.3]} 20... e5 {[%clk
0:02:10]} 21. Bc3 {[%clk 0:00:39.5]} 21... Qd5 {[%clk 0:02:06.4]} 22. Qa4 {[%clk
0:00:32.5]} 22... f5 {[%clk 0:01:56.7]} 23. Rc7 {[%clk 0:00:20.1]} 23... Rac8
{[%clk 0:01:50.8]} 24. Rd7 {[%clk 0:00:19.8]} 24... Qc6 {[%clk 0:01:40.7]} 25.
Qxc6 {[%clk 0:00:19.7]} 25... Rxc6 {[%clk 0:01:40.6]} 26. Bd2 {[%clk 0:00:19.3]}
26... a6 {[%clk 0:01:32.9]} 27. Rd1 {[%clk 0:00:13.6]} 27... Rc2 {[%clk
0:01:26.3]} 28. Bf1 {[%clk 0:00:13.7]} 28... Nc5 {[%clk 0:00:59.2]} 29. Rd6
{[%clk 0:00:07.8]} 29... Rc8 {[%clk 0:00:44.2]} 30. Bb4 {[%clk 0:00:08.2]} 30...
Bf8 {[%clk 0:00:29.3]} 31. R6d5 {[%clk 0:00:06.8]} 31... Kg7 {[%clk 0:00:19.2]}
32. Rxe5 {[%clk 0:00:04.9]} 32... Rb2 {[%clk 0:00:16.6]} 33. Bxc5 {[%clk
0:00:04.9]} 33... Bxc5 {[%clk 0:00:13]} 34. Rd7+ {[%clk 0:00:04.9]} 34... Kh6
{[%clk 0:00:13.1]} 35. h4 {[%clk 0:00:03.5]} 35... Ra2 {[%clk 0:00:07.9]} 36.
Red5 {[%clk 0:00:03.7]} 36... Rxa5 {[%clk 0:00:07.4]} 37. Rb7 {[%clk 0:00:04.1]}
37... g5 {[%clk 0:00:03.9]} 38. Rdd7 {[%clk 0:00:03.7]} 38... gxh4 {[%clk
0:00:04.3]} 39. Rxh7+ {[%clk 0:00:04]} 39... Kg6 {[%clk 0:00:04.8]} 40. Rbg7+
{[%clk 0:00:04.6]} 40... Kf6 {[%clk 0:00:05.2]} 41. gxh4 {[%clk 0:00:03.9]}
41... Ra1 {[%clk 0:00:05.1]} 42. h5 {[%clk 0:00:04.2]} 42... a5 {[%clk
0:00:04.3]} 43. Rg6+ {[%clk 0:00:04.8]} 43... Ke5 {[%clk 0:00:03.8]} 44. Rd7
{[%clk 0:00:05]} 44... a4 {[%clk 0:00:03.4]} 45. Kg2 {[%clk 0:00:05.5]} 45... a3
{[%clk 0:00:01.8]} 46. Bc4 {[%clk 0:00:06.2]} 1-0

[Event "Early-Titled-Tuesday-Blitz-February-13-2024"]
[Site "Chess.com"]
[Date "2024.02.13"]
[Round "4"]
[White "SHIVACalypso"]
[Black "LaPiToB"]
[Result "1/2-1/2"]
[WhiteElo "2514"]
[BlackElo "2317"]
[TimeControl "180+1"]
[EndTime "8:43:34 PST"]
[Termination "Game drawn by repetition"]

1. Nf3 {[%clk 0:02:58.5]} 1... Nf6 {[%clk 0:02:59.1]} 2. c4 {[%clk 0:02:57.3]}
2... e6 {[%clk 0:02:58.8]} 3. g3 {[%clk 0:02:57.6]} 3... d5 {[%clk 0:02:58.1]}
4. Bg2 {[%clk 0:02:57.8]} 4... c5 {[%clk 0:02:54.4]} 5. O-O {[%clk 0:02:54.2]}
5... Nc6 {[%clk 0:02:53.7]} 6. d3 {[%clk 0:02:48]} 6... Be7 {[%clk 0:02:47.6]}
7. Nbd2 {[%clk 0:02:47.8]} 7... O-O {[%clk 0:02:46.2]} 8. a3 {[%clk 0:02:47.9]}
8... b6 {[%clk 0:02:44]} 9. Rb1 {[%clk 0:02:44.5]} 9... Bb7 {[%clk 0:02:41.3]}
10. b3 {[%clk 0:02:44.3]} 10... d4 {[%clk 0:02:35.7]} 11. Ne5 {[%clk 0:02:38.4]}
11... Qc7 {[%clk 0:02:33.5]} 12. Nxc6 {[%clk 0:02:38.4]} 12... Bxc6 {[%clk
0:02:33.2]} 13. Bxc6 {[%clk 0:02:39.3]} 13... Qxc6 {[%clk 0:02:33.3]} 14. b4
{[%clk 0:02:40.2]} 14... e5 {[%clk 0:02:28.6]} 15. Qb3 {[%clk 0:02:28.6]} 15...
e4 {[%clk 0:02:09.4]} 16. dxe4 {[%clk 0:02:12.5]} 16... Nxe4 {[%clk 0:02:01.4]}
17. Nxe4 {[%clk 0:02:13.4]} 17... Qxe4 {[%clk 0:02:00.5]} 18. e3 {[%clk
0:02:13.6]} 18... d3 {[%clk 0:01:51.4]} 19. Bb2 {[%clk 0:02:10.1]} 19... Rad8
{[%clk 0:01:47.7]} 20. Rbd1 {[%clk 0:02:09]} 20... Rd7 {[%clk 0:01:42.2]} 21.
Rd2 {[%clk 0:02:04.8]} 21... Rfd8 {[%clk 0:01:42]} 22. Rfd1 {[%clk 0:02:02.7]}
22... h5 {[%clk 0:01:39.2]} 23. h4 {[%clk 0:01:51.8]} 23... Rd6 {[%clk
0:01:31.2]} 24. bxc5 {[%clk 0:01:49.8]} 24... bxc5 {[%clk 0:01:29.8]} 25. Qc3
{[%clk 0:01:31.5]} 25... Bf6 {[%clk 0:01:12.7]} 26. Qc1 {[%clk 0:01:31]} 26...
Bxh4 {[%clk 0:01:10.1]} 27. Qa1 {[%clk 0:01:16.8]} 27... Rg6 {[%clk 0:01:05.9]}
28. Be5 {[%clk 0:01:16.7]} 28... Bf6 {[%clk 0:00:45.5]} 29. Bxf6 {[%clk
0:01:12.3]} 29... gxf6 {[%clk 0:00:44.9]} 30. Qb1 {[%clk 0:01:11]} 30... h4
{[%clk 0:00:39.4]} 31. Rxd3 {[%clk 0:01:11.2]} 31... Rxd3 {[%clk 0:00:38]} 32.
Qxd3 {[%clk 0:01:12.1]} 32... Qf3 {[%clk 0:00:36.1]} 33. e4 {[%clk 0:00:50.4]}
33... Qf4 {[%clk 0:00:29.2]} 34. Kg2 {[%clk 0:00:43]} 34... hxg3 {[%clk
0:00:16.9]} 35. fxg3 {[%clk 0:00:43.9]} 35... Rg4 {[%clk 0:00:17.2]} 36. Re1
{[%clk 0:00:31]} 36... Qe5 {[%clk 0:00:17]} 37. Qf3 {[%clk 0:00:22]} 37... Rg6
{[%clk 0:00:15.7]} 38. Re2 {[%clk 0:00:18.8]} 38... Kg7 {[%clk 0:00:15.5]} 39.
Qf5 {[%clk 0:00:18.5]} 39... Qc3 {[%clk 0:00:14.7]} 40. Qf4 {[%clk 0:00:13.2]}
40... Qxc4 {[%clk 0:00:14.4]} 41. Rf2 {[%clk 0:00:10.5]} 41... Qd4 {[%clk
0:00:14.1]} 42. Qf3 {[%clk 0:00:06.2]} 42... c4 {[%clk 0:00:13.8]} 43. Re2
{[%clk 0:00:05.1]} 43... Qe5 {[%clk 0:00:12.6]} 44. Rc2 {[%clk 0:00:04.1]} 44...
Qd4 {[%clk 0:00:09.1]} 45. Rc3 {[%clk 0:00:03.9]} 45... Qd2+ {[%clk 0:00:07.8]}
46. Kg1 {[%clk 0:00:04.2]} 46... Rh6 {[%clk 0:00:07]} 47. Qg4+ {[%clk
0:00:02.4]} 47... Rg6 {[%clk 0:00:07.1]} 48. Qf3 {[%clk 0:00:02.4]} 48... Qd4+
{[%clk 0:00:07.3]} 49. Kg2 {[%clk 0:00:02.4]} 49... Qd2+ {[%clk 0:00:06.7]} 50.
Kg1 {[%clk 0:00:02.7]} 1/2-1/2

[Event "Early-Titled-Tuesday-Blitz-February-13-2024"]
[Site "Chess.com"]
[Date "2024.02.13"]
[Round "4"]
[White "SimonKnightRivendell"]
[Black "Louis-Paulsen-Fan"]
[Result "1/2-1/2"]
[WhiteElo "2106"]
[BlackElo "2269"]
[TimeControl "180+1"]
[EndTime "8:43:34 PST"]
[Termination "Game drawn - timeout vs insufficient material"]

1. d4 {[%clk 0:03:00.9]} 1... d5 {[%clk 0:02:59.3]} 2. c4 {[%clk 0:03:00.2]}
2... e6 {[%clk 0:02:59.4]} 3. Nf3 {[%clk 0:03:00.1]} 3... c5 {[%clk 0:02:59.5]}
4. g3 {[%clk 0:02:58]} 4... Nc6 {[%clk 0:02:59.2]} 5. cxd5 {[%clk 0:02:57]} 5...
exd5 {[%clk 0:02:59]} 6. Bg2 {[%clk 0:02:56.4]} 6... c4 {[%clk 0:02:59.3]} 7.
O-O {[%clk 0:02:55.9]} 7... Bb4 {[%clk 0:02:59.3]} 8. Bd2 {[%clk 0:02:51.7]}
8... Bxd2 {[%clk 0:02:58.2]} 9. Qxd2 {[%clk 0:02:48.2]} 9... Nf6 {[%clk
0:02:54.9]} 10. Nc3 {[%clk 0:02:46.6]} 10... Rb8 {[%clk 0:02:50.5]} 11. a3
{[%clk 0:02:44.6]} 11... O-O {[%clk 0:02:49.8]} 12. Rfe1 {[%clk 0:02:41.3]}
12... Bf5 {[%clk 0:02:48.6]} 13. Nh4 {[%clk 0:02:38.4]} 13... Be6 {[%clk
0:02:48.7]} 14. Rad1 {[%clk 0:02:34.2]} 14... b5 {[%clk 0:02:19.7]} 15. e4
{[%clk 0:02:33.4]} 15... a5 {[%clk 0:02:14.5]} 16. e5 {[%clk 0:02:21.5]} 16...
Ne8 {[%clk 0:02:06.2]} 17. f4 {[%clk 0:02:20.9]} 17... Qd7 {[%clk 0:02:03.1]}
18. Rf1 {[%clk 0:02:16.1]} 18... b4 {[%clk 0:01:54.1]} 19. f5 {[%clk 0:02:15.8]}
19... bxc3 {[%clk 0:01:53.2]} 20. fxe6 {[%clk 0:02:15.9]} 20... cxd2 {[%clk
0:01:17.9]} 21. exd7 {[%clk 0:02:15.4]} 21... Nc7 {[%clk 0:01:18.1]} 22. Rxd2
{[%clk 0:02:14.2]} 22... Rfd8 {[%clk 0:01:07.6]} 23. Nf5 {[%clk 0:01:58]} 23...
Rxd7 {[%clk 0:01:05.3]} 24. Nd6 {[%clk 0:01:56]} 24... h6 {[%clk 0:00:40.6]} 25.
Bh3 {[%clk 0:01:47.3]} 25... Re7 {[%clk 0:00:35.5]} 26. Rdf2 {[%clk 0:01:27.4]}
26... Rf8 {[%clk 0:00:22.8]} 27. Rf4 {[%clk 0:01:02.7]} 27... Ne6 {[%clk
0:00:21.9]} 28. Rxf7 {[%clk 0:00:56.2]} 28... Rfxf7 {[%clk 0:00:18.7]} 29. Rxf7
{[%clk 0:00:55.3]} 29... Nexd4 {[%clk 0:00:18.7]} 30. Rxe7 {[%clk 0:00:50]}
30... Nxe7 {[%clk 0:00:19.6]} 31. Nb7 {[%clk 0:00:41.4]} 31... Nc2 {[%clk
0:00:17]} 32. Nxa5 {[%clk 0:00:38.8]} 32... Kf7 {[%clk 0:00:14.9]} 33. Kf2
{[%clk 0:00:35.9]} 33... g6 {[%clk 0:00:14.7]} 34. Ke2 {[%clk 0:00:31.7]} 34...
Nf5 {[%clk 0:00:14.9]} 35. Bxf5 {[%clk 0:00:26]} 35... gxf5 {[%clk 0:00:15.8]}
36. Kd2 {[%clk 0:00:22]} 36... Nd4 {[%clk 0:00:15.9]} 37. Nb7 {[%clk 0:00:19]}
37... Ke6 {[%clk 0:00:15.5]} 38. a4 {[%clk 0:00:18.2]} 38... Nc6 {[%clk
0:00:13.2]} 39. a5 {[%clk 0:00:17.4]} 39... Kxe5 {[%clk 0:00:13.8]} 40. a6
{[%clk 0:00:14.8]} 40... Ke4 {[%clk 0:00:13.7]} 41. Nd6+ {[%clk 0:00:11.2]}
41... Kf3 {[%clk 0:00:13.8]} 42. Nb5 {[%clk 0:00:10.9]} 42... Kg2 {[%clk
0:00:13]} 43. Nd4 {[%clk 0:00:07.5]} 43... Na7 {[%clk 0:00:11.8]} 44. Nxf5
{[%clk 0:00:06.1]} 44... Kxh2 {[%clk 0:00:11.7]} 45. Ke3 {[%clk 0:00:04.3]}
45... Kh3 {[%clk 0:00:11.7]} 46. Kd4 {[%clk 0:00:03.9]} 46... Kg4 {[%clk
0:00:11.6]} 47. Nxh6+ {[%clk 0:00:03.8]} 47... Kxg3 {[%clk 0:00:12.3]} 48. Kxd5
{[%clk 0:00:03.3]} 48... Kf3 {[%clk 0:00:11.1]} 49. Kxc4 {[%clk 0:00:03]} 49...
Ke4 {[%clk 0:00:11.4]} 50. b4 {[%clk 0:00:03]} 50... Ke5 {[%clk 0:00:10.6]} 51.
Kc5 {[%clk 0:00:03.1]} 51... Ke6 {[%clk 0:00:09.9]} 52. Kb6 {[%clk 0:00:01.3]}
52... Nc8+ {[%clk 0:00:09.2]} 1/2-1/2

[Event "Early-Titled-Tuesday-Blitz-February-13-2024"]
[Site "Chess.com"]
[Date "2024.02.13"]
[Round "4"]
[White "martinmena"]
[Black "Teidi96"]
[Result "0-1"]
[WhiteElo "2116"]
[BlackElo "2301"]
[TimeControl "180+1"]
[EndTime "8:43:36 PST"]
[Termination "Teidi96 won on time"]

1. c4 {[%clk 0:03:00.9]} 1... e5 {[%clk 0:02:58.5]} 2. Nc3 {[%clk 0:02:58]} 2...
Nf6 {[%clk 0:02:58.9]} 3. g3 {[%clk 0:02:56.6]} 3... d5 {[%clk 0:02:58.1]} 4.
cxd5 {[%clk 0:02:57.1]} 4... Nxd5 {[%clk 0:02:59]} 5. Bg2 {[%clk 0:02:56.9]}
5... Nb6 {[%clk 0:02:59.3]} 6. Nf3 {[%clk 0:02:56.2]} 6... Nc6 {[%clk
0:03:00.2]} 7. O-O {[%clk 0:02:56.1]} 7... Be7 {[%clk 0:03:01]} 8. d3 {[%clk
0:02:56.6]} 8... O-O {[%clk 0:03:01.4]} 9. a3 {[%clk 0:02:56.9]} 9... Re8 {[%clk
0:03:01.2]} 10. b4 {[%clk 0:02:56.9]} 10... a5 {[%clk 0:03:01.6]} 11. b5 {[%clk
0:02:56.5]} 11... Nd4 {[%clk 0:03:02.2]} 12. Nxd4 {[%clk 0:02:46.5]} 12... exd4
{[%clk 0:03:00.2]} 13. Na4 {[%clk 0:02:46.7]} 13... Nxa4 {[%clk 0:02:43.3]} 14.
Qxa4 {[%clk 0:02:45.8]} 14... Bf6 {[%clk 0:02:42.6]} 15. Bf4 {[%clk 0:02:28.8]}
15... Rxe2 {[%clk 0:02:37.9]} 16. Rac1 {[%clk 0:02:26.1]} 16... Re7 {[%clk
0:02:37.4]} 17. Rfe1 {[%clk 0:02:13.3]} 17... Rxe1+ {[%clk 0:02:28.7]} 18. Rxe1
{[%clk 0:02:14.2]} 18... g5 {[%clk 0:02:25.2]} 19. Bd2 {[%clk 0:01:35.3]} 19...
Kg7 {[%clk 0:02:01.5]} 20. Qc2 {[%clk 0:00:45.1]} 20... a4 {[%clk 0:01:50]} 21.
Qc5 {[%clk 0:00:33.6]} 21... h6 {[%clk 0:01:45.9]} 22. Rc1 {[%clk 0:00:26.8]}
22... Bd7 {[%clk 0:01:39.8]} 23. Bxb7 {[%clk 0:00:22.6]} 23... Rb8 {[%clk
0:01:39.7]} 24. Bc6 {[%clk 0:00:20.6]} 24... Bxc6 {[%clk 0:01:34.9]} 25. Qxc6
{[%clk 0:00:20.1]} 25... Qe7 {[%clk 0:01:26.4]} 26. Qxc7 {[%clk 0:00:17.7]}
26... Qxc7 {[%clk 0:01:20.1]} 27. Rxc7 {[%clk 0:00:18.6]} 27... Rxb5 {[%clk
0:01:20.3]} 28. Ra7 {[%clk 0:00:18.7]} 28... Rb3 {[%clk 0:01:13.1]} 29. Rxa4
{[%clk 0:00:17.5]} 29... Rxd3 {[%clk 0:01:13.7]} 30. Bb4 {[%clk 0:00:14.4]}
30... Rd1+ {[%clk 0:01:11.6]} 31. Kg2 {[%clk 0:00:14.8]} 31... g4 {[%clk
0:01:09.9]} 32. Ra6 {[%clk 0:00:13.6]} 32... d3 {[%clk 0:01:08.1]} 33. Rd6
{[%clk 0:00:11.9]} 33... Bg5 {[%clk 0:00:59]} 34. f4 {[%clk 0:00:07.8]} 34...
gxf3+ {[%clk 0:00:52.9]} 35. Kf2 {[%clk 0:00:03.7]} 35... d2 {[%clk 0:00:41.4]}
36. h4 {[%clk 0:00:02.9]} 36... Rh1 {[%clk 0:00:35.6]} 37. hxg5 {[%clk
0:00:02.3]} 37... d1=Q {[%clk 0:00:35.1]} 38. Rxd1 {[%clk 0:00:03.2]} 38... Rxd1
{[%clk 0:00:35.3]} 39. gxh6+ {[%clk 0:00:03.5]} 39... Kxh6 {[%clk 0:00:35.8]}
40. Kxf3 {[%clk 0:00:03]} 40... Kg6 {[%clk 0:00:32.7]} 41. g4 {[%clk 0:00:02.5]}
41... Ra1 {[%clk 0:00:30.2]} 42. Bc5 {[%clk 0:00:01.9]} 42... Ra2 {[%clk
0:00:30.7]} 43. Bd6 {[%clk 0:00:02.1]} 43... Kf6 {[%clk 0:00:29.1]} 44. Kf4
{[%clk 0:00:02.3]} 44... Ke6 {[%clk 0:00:29.3]} 45. Bb4 {[%clk 0:00:01.9]} 45...
f6 {[%clk 0:00:26.3]} 46. Kg3 {[%clk 0:00:02.2]} 46... Rc2 {[%clk 0:00:23.8]}
47. Kf3 {[%clk 0:00:02.7]} 47... Rc4 {[%clk 0:00:23.4]} 48. Bf8 {[%clk
0:00:01.8]} 48... Ke5 {[%clk 0:00:22.7]} 49. Bb4 {[%clk 0:00:02.4]} 49... Rf4+
{[%clk 0:00:19]} 50. Kg3 {[%clk 0:00:03.1]} 50... Re4 {[%clk 0:00:18.8]} 51. Kh4
{[%clk 0:00:02.9]} 51... Re3 {[%clk 0:00:16.4]} 52. Kh5 {[%clk 0:00:02.4]} 52...
Rh3+ {[%clk 0:00:12.9]} 53. Kg6 {[%clk 0:00:02.2]} 53... Rf3 {[%clk 0:00:13.8]}
0-1